bitfinex-derivatives/quotes_BTCF0:USTF0_20250609
["timestamp","ask_amount","ask_price","bid_price","bid_amount"]
[1749438733133,1.75561874,105440.0,105430.0,0.42688004]
[1749438733626,1.75561874,105440.0,105430.0,0.41253084]
[1749438733826,1.75561874,105440.0,105430.0,0.42688004]
[1749438734132,1.75561874,105440.0,105430.0,0.42687874]
[1749438734429,1.75561874,105440.0,105430.0,0.57495453]
[1749438735033,1.75561874,105440.0,105430.0,0.56060663]
[1749438735223,1.75561874,105440.0,105430.0,0.4564756]
[1749438735533,1.60703466,105440.0,105430.0,0.57415968]
[1749438735721,1.60703466,105440.0,105430.0,0.63985968]
[1749438736533,1.60703466,105440.0,105430.0,0.6398634]
[1749438737133,1.60703466,105440.0,105430.0,0.62551277]
[1749438737433,1.60703466,105440.0,105430.0,0.61027346]
[1749438738131,1.60703466,105440.0,105430.0,0.61027355]
[1749438738535,1.60703466,105440.0,105430.0,0.59592283]
[1749438738734,1.60703466,105440.0,105430.0,0.61027355]
[1749438739031,1.60703466,105440.0,105430.0,0.59592283]
[1749438739231,1.60703466,105440.0,105430.0,0.61027355]
[1749438739935,1.60703466,105440.0,105430.0,0.61027403]
[1749438740135,1.60703466,105440.0,105430.0,0.59592283]
[1749438740325,1.60703466,105440.0,105430.0,0.61026922]
[1749438741637,1.60703466,105440.0,105430.0,0.59592283]
[1749438741941,1.60703466,105440.0,105430.0,0.61026659]
[1749438742739,1.75631874,105440.0,105430.0,0.58739241]
[1749438742944,1.63863466,105440.0,105430.0,0.58739241]
[1749438743233,1.63863466,105440.0,105430.0,0.57304865]
[1749438743440,1.63863466,105440.0,105430.0,0.58739302]
[1749438744332,1.63863466,105440.0,105430.0,0.61698296]
[1749438744930,1.52095058,105440.0,105430.0,0.73466704]
[1749438745143,1.63863466,105440.0,105430.0,0.72032267]
[1749438745334,1.60673466,105440.0,105430.0,0.73465555]
[1749438745536,1.57513466,105440.0,105430.0,0.82032267]
[1749438745843,1.57513466,105440.0,105430.0,0.83465555]
[1749438746341,1.57513466,105440.0,105430.0,0.8346557]
[1749438746735,1.57513466,105440.0,105430.0,0.82032267]
[1749438747242,1.57513466,105440.0,105430.0,0.73984523]
[1749438747430,1.57513466,105440.0,105430.0,0.83465497]
[1749438747635,1.45745058,105440.0,105430.0,0.83465497]
[1749438748037,1.57513466,105440.0,105430.0,0.83465497]
[1749438748232,1.57513466,105440.0,105430.0,0.82032267]
[1749438748441,1.57513466,105440.0,105430.0,0.8348671]
[1749438748641,1.57505466,105440.0,105430.0,0.83486711]
[1749438748838,1.57505466,105440.0,105430.0,0.82032267]
[1749438749042,1.57505466,105440.0,105430.0,0.8348671]
[1749438750044,1.02901466,105440.0,105430.0,0.8348671]
[1749438750245,1.57501466,105440.0,105430.0,0.83478932]
[1749438750442,1.45733058,105440.0,105430.0,0.95328216]
[1749438750648,1.45733058,105440.0,105430.0,0.80520616]
[1749438750941,1.45733058,105440.0,105430.0,0.79073972]
[1749438751145,1.45733058,105440.0,105430.0,0.8052061]
[1749438751539,1.45733058,105440.0,105430.0,0.80520609]
[1749438751735,1.45733058,105440.0,105430.0,0.80520346]
[1749438752548,1.45733058,105440.0,105430.0,0.79073972]
[1749438753047,1.45733058,105440.0,105430.0,0.68671062]
[1749438753248,1.45733058,105440.0,105430.0,0.92963157]
[1749438753749,1.57501466,105440.0,105430.0,0.81194749]
[1749438753945,1.57501466,105440.0,105430.0,0.91516783]
[1749438754248,1.57501466,105440.0,105430.0,0.92963063]
[1749438755446,1.57501466,105440.0,105430.0,0.92957761]
[1749438755647,1.57501466,105440.0,105430.0,0.91516783]
[1749438755844,1.57501466,105440.0,105430.0,0.92957761]
[1749438757249,1.57501466,105440.0,105430.0,0.92956979]
[1749438757448,1.45733058,105440.0,105430.0,0.92956979]
[1749438757751,1.09653058,105440.0,105430.0,0.91516783]
[1749438757944,1.09653058,105440.0,105430.0,0.92956979]
[1749438758151,1.09653058,105440.0,105430.0,0.91516783]
[1749438758339,1.09653058,105440.0,105430.0,0.92956979]
[1749438759041,1.09653058,105440.0,105430.0,0.92956921]
[1749438759242,1.09653058,105440.0,105430.0,0.91516783]
[1749438759441,1.09653058,105440.0,105430.0,0.92956912]
[1749438759648,0.36094228,105440.0,105430.0,1.33052433]
[1749438759850,0.00014228,105440.0,105430.0,1.62291612]
[1749438760053,0.00014228,105440.0,105430.0,1.63731672]
[1749438760555,0.00014228,105440.0,105430.0,1.73731672]
[1749438760743,0.00014228,105440.0,105430.0,1.73729629]
[1749438761048,0.00014228,105440.0,105430.0,1.7372963]
[1749438761245,0.00014228,105440.0,105430.0,1.88527011]
[1749438761551,0.00014228,105440.0,105430.0,1.87088993]
[1749438761853,0.00014228,105440.0,105430.0,1.88527011]
[1749438762452,0.00014228,105440.0,105430.0,1.87088993]
[1749438762644,0.00014228,105440.0,105430.0,1.88525605]
[1749438762844,0.00014228,105440.0,105430.0,1.87088993]
[1749438763247,0.00014228,105440.0,105430.0,1.88525605]
[1749438764155,0.00014228,105440.0,105430.0,1.76757197]
[1749438764349,0.00014228,105440.0,105430.0,1.76757135]
[1749438766055,0.00014228,105440.0,105430.0,1.75320585]
[1749438766258,0.00014228,105440.0,105430.0,1.7674734]
[1749438766650,0.00014228,105440.0,105430.0,1.75320585]
[1749438767156,0.00014228,105440.0,105430.0,1.7674734]
[1749438767655,0.00014228,105440.0,105430.0,1.75320585]
[1749438767857,0.00014228,105440.0,105430.0,1.7674734]
[1749438768054,0.00014228,105440.0,105430.0,1.75320585]
[1749438768650,0.00014228,105440.0,105430.0,1.88515747]
[1749438769456,0.00014228,105440.0,105430.0,1.87088993]
[1749438769655,0.00014228,105440.0,105430.0,1.92890424]
[1749438769846,0.00014228,105440.0,105430.0,1.94317934]
[1749438770760,0.00014228,105440.0,105430.0,1.94317873]
[1749438771260,0.00014228,105440.0,105430.0,1.92890424]
[1749438771454,0.00014228,105440.0,105430.0,1.8254935]
[1749438771654,0.00014228,105440.0,105430.0,1.81122016]
[1749438771962,0.00014228,105440.0,105430.0,1.8254935]
[1749438772661,0.00014228,105440.0,105430.0,1.81122016]
[1749438772854,0.00014228,105440.0,105430.0,1.82549299]
[1749438773162,0.00014228,105440.0,105430.0,1.82549272]
[1749438773559,0.00014228,105440.0,105430.0,1.38425272]
[1749438774456,0.00014228,105440.0,105430.0,1.48766424]
[1749438775153,0.00014228,105440.0,105430.0,1.50190624]
[1749438775354,0.00014228,105440.0,105430.0,1.48766424]
[1749438775661,0.00014228,105440.0,105430.0,1.50190624]
[1749438775860,0.00014228,105440.0,105430.0,1.48766424]
[1749438776061,0.00014228,105440.0,105430.0,1.50190623]
[1749438776362,0.00014228,105440.0,105430.0,1.5019062]
[1749438776563,0.00014228,105440.0,105430.0,1.50190445]
[1749438776854,0.00014228,105440.0,105430.0,1.48766424]
[1749438777061,0.00014228,105440.0,105430.0,1.36998016]
[1749438777458,0.00014228,105440.0,105430.0,1.38422037]
[1749438777756,0.00014228,105440.0,105430.0,1.38421931]
[1749438778764,0.00014228,105440.0,105430.0,1.36998016]
[1749438778964,0.00014228,105440.0,105430.0,1.38421739]
[1749438779158,0.00014228,105440.0,105430.0,1.36998016]
[1749438779758,0.00014228,105440.0,105430.0,1.38421702]
[1749438780358,0.00014228,105440.0,105430.0,1.36998016]
[1749438780759,0.00014228,105440.0,105430.0,1.3842396]
[1749438781161,0.00014228,105440.0,105430.0,1.36998016]
[1749438781354,0.00014228,105440.0,105430.0,1.3842396]
[1749438781563,0.00014228,105440.0,105430.0,1.38423876]
[1749438781767,0.00014228,105440.0,105430.0,1.26655468]
[1749438781970,0.00014228,105440.0,105430.0,1.38423876]
[1749438782368,0.00014228,105440.0,105430.0,1.36998016]
[1749438783254,0.00014228,105440.0,105430.0,1.38423872]
[1749438783971,0.00014228,105440.0,105430.0,1.36998016]
[1749438784169,0.00014228,105440.0,105430.0,1.38421842]
[1749438784969,0.00014228,105440.0,105430.0,1.36998016]
[1749438785264,0.00014228,105440.0,105430.0,1.38421842]
[1749438785672,0.00014228,105440.0,105430.0,1.36998016]
[1749438785970,0.00014228,105440.0,105430.0,1.38422139]
[1749438786172,0.00014228,105440.0,105430.0,1.36998016]
[1749438786672,0.00014228,105440.0,105430.0,1.38422139]
[1749438787369,0.00014228,105440.0,105430.0,1.36998016]
[1749438787569,0.00014228,105440.0,105430.0,1.38422622]
[1749438787764,0.00014228,105440.0,105430.0,1.36998016]
[1749438787969,0.00014228,105440.0,105430.0,1.38422622]
[1749438788777,0.00014228,105440.0,105430.0,1.1782381]
[1749438789078,0.00014228,105440.0,105430.0,1.17826192]
[1749438790171,0.00014228,105440.0,105430.0,1.17828476]
[1749438790574,0.00014228,105440.0,105430.0,1.16399204]
[1749438790775,0.00014228,105440.0,105430.0,1.17828476]
[1749438791177,0.00014228,105440.0,105430.0,1.16399204]
[1749438791779,0.00014228,105440.0,105430.0,1.17829105]
[1749438792477,0.00014228,105440.0,105430.0,1.16399204]
[1749438792675,0.00014228,105440.0,105430.0,1.17829098]
[1749438793171,0.00014228,105440.0,105430.0,1.16399204]
[1749438793378,0.00014228,105440.0,105430.0,1.17829098]
[1749438794580,0.00014228,105440.0,105430.0,1.16399204]
[1749438794875,0.00014228,105440.0,105430.0,1.17829098]
[1749438795081,0.00014228,105440.0,105430.0,1.1783006]
[1749438796280,0.00014228,105440.0,105430.0,1.1782981]
[1749438796781,0.00014228,105440.0,105430.0,1.16399204]
[1749438796984,0.00014228,105440.0,105430.0,1.1782981]
[1749438797575,0.00014228,105440.0,105430.0,1.17829819]
[1749438798272,0.00014228,105440.0,105430.0,1.16399204]
[1749438798579,0.00014228,105440.0,105430.0,1.17829819]
[1749438799388,0.00014228,105440.0,105430.0,1.17829826]
[1749438799788,0.00014228,105440.0,105430.0,1.17829791]
[1749438800179,0.00014228,105440.0,105430.0,1.17851096]
[1749438800783,0.00014228,105440.0,105430.0,1.16399204]
[1749438800976,0.00014228,105440.0,105430.0,1.06082688]
[1749438801173,0.00014228,105440.0,105430.0,1.17851096]
[1749438801377,0.00014228,105440.0,105430.0,1.17850925]
[1749438801581,0.00014228,105440.0,105430.0,1.16399204]
[1749438801788,0.00014228,105440.0,105430.0,1.17850925]
[1749438801987,0.00014228,105440.0,105430.0,1.16399204]
[1749438802288,0.00014228,105440.0,105430.0,1.17850925]
[1749438803586,0.00014228,105440.0,105430.0,1.17850912]
[1749438805390,0.00014228,105440.0,105430.0,1.16399204]
[1749438805686,0.00014228,105440.0,105430.0,1.17851031]
[1749438805887,0.00014228,105440.0,105430.0,1.16399204]
[1749438806185,0.00014228,105440.0,105430.0,1.17851022]
[1749438807083,0.00014228,105440.0,105430.0,1.16399204]
[1749438807388,0.00014228,105440.0,105430.0,1.1785102]
[1749438807783,0.00014228,105440.0,105430.0,1.16399204]
[1749438807987,0.00014228,105440.0,105430.0,1.1785102]
[1749438808288,0.00014228,105440.0,105430.0,1.17851037]
[1749438808787,0.00014228,105440.0,105430.0,1.16399204]
[1749438808988,0.00014228,105440.0,105430.0,1.17851037]
[1749438809591,0.00014228,105440.0,105430.0,1.16399204]
[1749438809788,0.00014228,105440.0,105430.0,1.17851037]
[1749438810390,0.00014228,105440.0,105430.0,1.17851157]
[1749438810587,0.00014228,105440.0,105430.0,1.16399204]
[1749438810786,0.00014228,105440.0,105430.0,1.17851157]
[1749438811991,0.00014228,105440.0,105430.0,1.16399204]
[1749438812296,0.00014228,105440.0,105430.0,1.17851031]
[1749438812593,0.00014228,105440.0,105430.0,1.16399204]
[1749438812780,0.00014228,105440.0,105430.0,1.17851031]
[1749438813285,0.00014228,105440.0,105430.0,1.16399204]
[1749438813594,0.00014228,105440.0,105430.0,1.17851039]
[1749438813794,0.00014228,105440.0,105430.0,1.16399204]
[1749438814298,0.00014228,105440.0,105430.0,1.1785104]
[1749438814793,0.00014228,105440.0,105430.0,1.16399204]
[1749438814989,0.00014228,105440.0,105430.0,1.17851028]
[1749438815491,0.00014228,105440.0,105430.0,1.16399204]
[1749438815794,0.00014228,105440.0,105430.0,1.17851026]
[1749438816295,0.00014228,105440.0,105430.0,1.16399204]
[1749438816796,0.00014228,105440.0,105430.0,1.1785099]
[1749438818498,0.00014228,105440.0,105430.0,1.16399204]
[1749438818698,0.00014228,105440.0,105430.0,1.17850988]
[1749438819487,0.00014228,105440.0,105430.0,1.16399204]
[1749438819692,0.00014228,105440.0,105430.0,1.17850988]
[1749438820200,0.00014228,105440.0,105430.0,1.17850964]
[1749438821198,0.00014228,105440.0,105430.0,1.47287757]
[1749438821902,0.00014228,105440.0,105430.0,1.47287722]
[1749438822106,0.00014228,105440.0,105430.0,1.45835997]
[1749438822404,0.00014228,105440.0,105430.0,1.47287722]
[1749438822996,0.00014228,105440.0,105430.0,1.45835997]
[1749438823297,0.00014228,105440.0,105430.0,1.47287722]
[1749438823902,0.00014228,105440.0,105430.0,1.16399204]
[1749438824107,0.00014228,105440.0,105430.0,1.17850929]
[1749438824805,0.00014228,105440.0,105430.0,1.38587467]
[1749438825400,0.00014228,105440.0,105430.0,1.16399204]
[1749438825599,0.00014228,105440.0,105430.0,1.17850963]
[1749438825809,0.00014228,105440.0,105430.0,1.32662823]
[1749438827508,0.00014228,105440.0,105430.0,1.31211064]
[1749438828313,0.00014228,105440.0,105430.0,1.32662814]
[1749438829303,0.00014228,105440.0,105430.0,1.32662857]
[1749438829505,0.00014228,105440.0,105430.0,1.31211064]
[1749438829712,0.00014228,105440.0,105430.0,1.32683928]
[1749438830608,0.00014228,105440.0,105430.0,1.2091552]
[1749438830813,0.00014228,105440.0,105430.0,1.32683928]
[1749438831104,0.00014228,105440.0,105430.0,1.32683857]
[1749438831608,0.00014228,105440.0,105430.0,1.19442656]
[1749438831813,0.00014228,105440.0,105430.0,1.32683857]
[1749438832915,0.00014228,105440.0,105430.0,1.32684308]
[1749438833516,0.00014228,105440.0,105430.0,1.31211064]
[1749438833709,0.00014228,105440.0,105430.0,1.32684308]
[1749438834511,0.00014228,105440.0,105430.0,1.17872448]
[1749438835015,0.00014228,105440.0,105430.0,1.17872604]
[1749438835713,0.00014228,105440.0,105430.0,1.16399204]
[1749438835917,0.00014228,105440.0,105430.0,1.17872604]
[1749438836216,0.00014228,105440.0,105430.0,1.17872497]
[1749438836612,0.00014228,105440.0,105430.0,1.16399204]
[1749438836912,0.00014228,105440.0,105430.0,1.45835997]
[1749438837116,0.00014228,105440.0,105430.0,1.47309292]
[1749438837818,0.00014228,105440.0,105430.0,1.47309781]
[1749438838312,0.00014228,105440.0,105430.0,1.35541373]
[1749438838514,0.00014228,105440.0,105430.0,1.45835997]
[1749438838715,0.00014228,105440.0,105430.0,1.47309781]
[1749438838911,0.00014228,105440.0,105430.0,1.47309901]
[1749438840018,0.00014228,105440.0,105430.0,1.47310088]
[1749438841718,0.00014228,105440.0,105430.0,1.47310142]
[1749438841920,0.00014228,105440.0,105430.0,1.34067589]
[1749438842219,0.00014228,105440.0,105430.0,1.47310142]
[1749438842721,0.00014228,105440.0,105430.0,1.17873349]
[1749438842912,0.00014228,105440.0,105430.0,1.16399204]
[1749438843413,0.00014228,105440.0,105430.0,1.1787334]
[1749438844119,0.00014228,105440.0,105430.0,1.16399204]
[1749438844418,0.00014228,105440.0,105430.0,1.1787334]
[1749438845314,0.00014228,105440.0,105430.0,1.16399204]
[1749438845520,0.00014228,105440.0,105430.0,1.17873339]
[1749438846021,0.00014228,105440.0,105430.0,1.17873338]
[1749438846622,0.00014228,105440.0,105430.0,1.17873311]
[1749438846816,0.00014228,105440.0,105430.0,1.16399204]
[1749438847119,0.00014228,105440.0,105430.0,1.17873311]
[1749438848217,0.00014228,105440.0,105430.0,1.17873301]
[1749438848413,0.00014228,105440.0,105430.0,1.16399204]
[1749438849114,0.00014228,105440.0,105430.0,1.47310094]
[1749438849314,0.00014228,105440.0,105430.0,1.45835997]
[1749438849514,0.00014228,105440.0,105430.0,1.47310094]
[1749438849715,0.00014228,105440.0,105430.0,1.17873301]
[1749438850022,0.00014228,105440.0,105430.0,1.1787355]
[1749438850216,0.00014228,105440.0,105430.0,1.16399204]
[1749438850515,0.18973058,105440.0,105430.0,1.01300796]
[1749438850714,0.55053058,105440.0,105430.0,1.1454355]
[1749438851220,0.55053058,105440.0,105430.0,1.1772355]
[1749438851818,0.55053058,105440.0,105430.0,1.16249204]
[1749438852019,0.55053058,105440.0,105430.0,1.17730506]
[1749438852219,0.55053058,105440.0,105430.0,1.16249204]
[1749438852521,0.55053058,105440.0,105430.0,1.36984062]
[1749438853009,0.55053058,105440.0,105430.0,1.16249204]
[1749438854223,0.36094228,105440.0,105430.0,1.16249204]
[1749438857923,0.36094228,105440.0,105430.0,1.45685997]
[1749438859324,0.36094228,105440.0,105430.0,1.16249204]
[1749438860922,0.00014228,105440.0,105430.0,1.16249204]
[1749438861122,0.36094228,105440.0,105430.0,1.16249204]
[1749438863416,0.36094228,105440.0,105430.0,1.45685997]
[1749438865623,0.36094228,105440.0,105430.0,1.16249204]
[1749438867323,0.00014228,105440.0,105430.0,1.06768214]
[1749438867523,0.90528,105450.0,105440.0,0.1895883]
[1749438867828,0.90461718,105460.0,105450.0,0.1895704]
[1749438868030,0.3608,105460.0,105450.0,0.88304598]
[1749438868330,0.90528,105460.0,105450.0,1.04175588]
[1749438868532,0.90528,105460.0,105450.0,0.89366438]
[1749438868724,0.90528,105460.0,105450.0,1.19582927]
[1749438869125,0.90708,105460.0,105450.0,1.19582927]
[1749438869828,0.90808,105460.0,105450.0,1.19582927]
[1749438870533,0.90708,105460.0,105450.0,1.19582927]
[1749438870833,0.90808,105460.0,105450.0,1.19582927]
[1749438871034,0.90808,105460.0,105450.0,1.38170649]
[1749438871335,0.90708,105460.0,105450.0,1.38170649]
[1749438871537,0.90708,105460.0,105450.0,1.41016649]
[1749438871727,0.90708,105460.0,105450.0,1.20283777]
[1749438872128,1.0966324,105460.0,105450.0,1.20283777]
[1749438872435,0.7358324,105460.0,105450.0,1.20283777]
[1749438872636,1.0966324,105460.0,105450.0,1.20283777]
[1749438873836,1.0966324,105460.0,105450.0,0.90593777]
[1749438875238,1.0966324,105460.0,105450.0,0.78825369]
[1749438875634,1.0966324,105460.0,105450.0,0.90593777]
[1749438875833,1.0966324,105460.0,105450.0,0.90999437]
[1749438877537,1.0966324,105460.0,105450.0,0.81518447]
[1749438877840,1.0966324,105460.0,105450.0,0.90999437]
[1749438879642,1.0966324,105460.0,105450.0,1.20689437]
[1749438881440,0.5523524,105460.0,105450.0,1.20689437]
[1749438881637,0.9923124,105460.0,105450.0,1.08921029]
[1749438881843,1.17359648,105460.0,105450.0,0.83050039]
[1749438882043,1.20459648,105460.0,105450.0,0.8225483]
[1749438885645,1.20459648,105460.0,105450.0,0.5256483]
[1749438886538,1.56539648,105460.0,105450.0,0.5256483]
[1749438889046,1.56539648,105460.0,105450.0,0.40796422]
[1749438893455,1.56539648,105460.0,105450.0,0.5256483]
[1749438896343,1.56539648,105460.0,105450.0,0.5583483]
[1749438897051,1.4477124,105460.0,105450.0,0.5583483]
[1749438897241,1.56539648,105460.0,105450.0,0.5583483]
[1749438897444,1.56539648,105460.0,105450.0,0.76567702]
[1749438901554,1.12543648,105460.0,105450.0,0.76567702]
[1749438901755,1.0806724,105460.0,105450.0,0.76567702]
[1749438901946,1.63807648,105460.0,105450.0,0.76567702]
[1749438903446,1.63807648,105460.0,105450.0,0.79877702]
[1749438903645,1.5203924,105460.0,105450.0,0.79877702]
[1749438904254,1.5203924,105460.0,105450.0,0.5914483]
[1749438904856,1.63807648,105460.0,105450.0,0.5914483]
[1749438905055,1.75576056,105460.0,105450.0,0.25109382]
[1749438905257,1.78596056,105460.0,105450.0,0.40796412]
[1749438905448,1.66827648,105460.0,105450.0,0.5256482]
[1749438905649,1.66827648,105460.0,105450.0,0.5564482]
[1749438905942,1.66827648,105460.0,105450.0,0.43876412]
[1749438906144,1.66827648,105460.0,105450.0,0.21839382]
[1749438906359,1.78596056,105460.0,105450.0,0.21839382]
[1749438906556,1.78596056,105460.0,105450.0,0.33681569]
[1749438907156,1.88078456,105460.0,105450.0,0.33681569]
[1749438907358,1.88078456,105460.0,105450.0,0.18886847]
[1749438910758,1.78596056,105460.0,105450.0,0.18886847]
[1749438911758,1.68204056,105460.0,105450.0,0.18886847]
[1749438911959,1.78588056,105460.0,105450.0,0.18886847]
[1749438912657,1.24232056,105460.0,105450.0,0.18886847]
[1749438912851,1.12463648,105460.0,105450.0,0.30655255]
[1749438913055,1.66815648,105460.0,105450.0,0.33865255]
[1749438913358,0.94655648,105460.0,105450.0,0.33865255]
[1749438913564,1.66815648,105460.0,105450.0,0.33865255]
[1749438915864,1.66815648,105460.0,105450.0,0.22096847]
[1749438916664,1.78584056,105460.0,105450.0,0.22096847]
[1749438918870,1.66815648,105460.0,105450.0,0.22096847]
[1749438921768,1.78584056,105460.0,105450.0,0.22096847]
[1749438922070,1.75564056,105460.0,105450.0,0.22096847]
[1749438923367,1.63795648,105460.0,105450.0,0.25376847]
[1749438924569,1.75564056,105460.0,105450.0,0.25376847]
[1749438926572,1.75564056,105460.0,105450.0,0.59128599]
[1749438928174,1.75564056,105460.0,105450.0,0.40171569]
[1749438929177,1.75564056,105460.0,105450.0,0.25376847]
[1749438930576,1.75564056,105460.0,105450.0,0.40171569]
[1749438932478,1.75564056,105460.0,105450.0,0.28329382]
[1749438933471,1.75564056,105460.0,105450.0,0.31379382]
[1749438939176,1.03404056,105460.0,105450.0,0.31379382]
[1749438939381,1.75564056,105460.0,105450.0,0.31379382]
[1749438939778,1.39484056,105460.0,105450.0,0.31379382]
[1749438939989,1.75564056,105460.0,105450.0,0.31379382]
[1749438940688,1.75564056,105460.0,105450.0,0.22103022]
[1749438940888,1.78654056,105460.0,105450.0,0.22103022]
[1749438944293,1.5511724,105460.0,105450.0,0.22103022]
[1749438944480,1.78654056,105460.0,105450.0,0.22103022]
[1749438953196,1.75564056,105460.0,105450.0,0.22103022]
[1749438953694,1.75564056,105460.0,105450.0,0.25403022]
[1749438953892,1.75564056,105460.0,105450.0,0.28433022]
[1749438953893,1.57363648,105460.0,105450.0,0.28433022]
[1749438954293,1.57363648,105460.0,105450.0,0.4020143]
[1749438955494,1.57363648,105460.0,105450.0,0.28433022]
[1749438955808,1.4559524,105460.0,105450.0,0.28433022]
[1749438956107,1.69132056,105460.0,105450.0,0.28433022]
[1749438957003,1.57363648,105460.0,105450.0,0.28433022]
[1749438959702,0.85203648,105460.0,105450.0,0.28433022]
[1749438959909,1.57363648,105460.0,105450.0,0.28433022]
[1749438960806,1.57363648,105460.0,105450.0,0.37914012]
[1749438964512,1.4559524,105460.0,105450.0,0.37914012]
[1749438964712,1.57363648,105460.0,105450.0,0.37914012]
[1749438966413,1.4559524,105460.0,105450.0,0.37914012]
[1749438966612,1.57363648,105460.0,105450.0,0.37914012]
[1749438967517,0.9131524,105460.0,105450.0,0.6863945]
[1749438967813,1.0166724,105460.0,105450.0,0.78636567]
[1749438968012,1.4555924,105460.0,105450.0,0.78636567]
[1749438968211,0.9131524,105460.0,105450.0,0.90404975]
[1749438968406,1.4555924,105460.0,105450.0,1.17809284]
[1749438968609,0.9131524,105460.0,105450.0,1.32526935]
[1749438968810,1.4555924,105460.0,105450.0,1.32526935]
[1749438969608,1.4555924,105460.0,105450.0,1.38465085]
[1749438972219,1.4555924,105460.0,105450.0,1.26696677]
[1749438972529,1.4555924,105460.0,105450.0,1.38465085]
[1749438973119,1.4555924,105460.0,105450.0,1.53250259]
[1749438974521,1.4555924,105460.0,105450.0,1.41481851]
[1749438976621,1.4555924,105460.0,105450.0,1.20748979]
[1749438977222,1.0947924,105460.0,105450.0,1.20748979]
[1749438977618,1.0947924,105460.0,105450.0,1.41481851]
[1749438977920,1.0946324,105460.0,105450.0,1.41481851]
[1749438979223,0.7338324,105460.0,105450.0,1.41481851]
[1749438980224,0.7338324,105460.0,105450.0,1.20748979]
[1749438980726,0.7338324,105460.0,105450.0,1.32517387]
[1749438982626,0.7338324,105460.0,105450.0,1.20748979]
[1749438986433,0.7338324,105460.0,105450.0,1.32517387]
[1749438986633,0.10552,105460.0,105450.0,1.32517387]
[1749438986834,0.2950724,105460.0,105450.0,1.32517387]
[1749438987043,0.2950724,105460.0,105450.0,1.20748979]
[1749438988135,0.10552,105460.0,105450.0,1.97676213]
[1749438988334,0.10552,105460.0,105450.0,2.18409085]
[1749438988641,0.10552,105460.0,105450.0,1.97676213]
[1749438989140,0.10552,105460.0,105450.0,2.18365472]
[1749438989442,0.10552,105460.0,105450.0,1.97676213]
[1749438990243,0.10552,105460.0,105450.0,1.74501337]
[1749438990644,0.10552,105460.0,105450.0,1.62732929]
[1749438990845,0.2950724,105460.0,105450.0,2.06592929]
[1749438993348,0.10552,105460.0,105450.0,2.06592929]
[1749438995747,0.10552,105460.0,105450.0,2.18353337]
[1749438995953,0.10552,105460.0,105450.0,1.97664213]
[1749438996648,0.10552,105460.0,105450.0,1.88183223]
[1749438996844,0.10552,105460.0,105450.0,1.97664213]
[1749439001760,0.002,105460.0,105450.0,1.97664213]
[1749439002053,0.002,105460.0,105450.0,1.74127397]
[1749439002253,0.002,105460.0,105450.0,1.85895805]
[1749439003749,0.002,105460.0,105450.0,1.30275397]
[1749439003952,0.002,105460.0,105450.0,1.85887805]
[1749439005352,0.1915524,105460.0,105450.0,1.85883805]
[1749439005854,0.1915524,105460.0,105450.0,1.49803805]
[1749439006052,0.5523524,105460.0,105450.0,1.49803805]
[1749439007255,0.5835524,105460.0,105450.0,1.05963805]
[1749439009756,0.394,105460.0,105450.0,1.05963805]
[1749439010461,0.5835523,105460.0,105450.0,1.05963805]
[1749439011658,0.394,105460.0,105450.0,1.05963805]
[1749439013161,0.394,105460.0,105450.0,1.26679903]
[1749439013360,0.5835524,105460.0,105450.0,1.26679903]
[1749439013560,0.5835524,105460.0,105450.0,1.05963805]
[1749439014261,0.394,105460.0,105450.0,1.05963805]
[1749439014462,0.5835524,105460.0,105450.0,1.05963805]
[1749439015667,0.394,105460.0,105450.0,1.05963805]
[1749439015854,0.5835524,105460.0,105450.0,1.26683196]
[1749439016054,0.394,105460.0,105450.0,1.26683196]
[1749439016255,0.5835524,105460.0,105450.0,1.26683196]
[1749439016456,0.6147524,105460.0,105450.0,1.26683196]
[1749439017162,0.5523524,105460.0,105450.0,1.26683196]
[1749439018766,0.5826524,105460.0,105450.0,1.26683196]
[1749439019559,0.70033648,105460.0,105450.0,1.01884788]
[1749439019765,0.70033648,105460.0,105450.0,1.13653196]
[1749439020061,0.6157524,105460.0,105450.0,1.23653196]
[1749439021363,0.83675648,105460.0,105450.0,1.10353196]
[1749439022466,0.7190724,105460.0,105450.0,1.10353196]
[1749439025268,0.3582724,105460.0,105450.0,1.10353196]
[1749439025466,0.7190724,105460.0,105450.0,1.10353196]
[1749439025658,0.3582724,105460.0,105450.0,1.10353196]
[1749439025860,0.7190724,105460.0,105450.0,1.10353196]
[1749439026568,0.7190724,105460.0,105450.0,1.20353196]
[1749439026970,0.7190724,105460.0,105450.0,1.23513196]
[1749439027171,0.7190724,105460.0,105450.0,1.26613196]
[1749439028160,0.5523524,105460.0,105450.0,1.26613196]
[1749439028562,1.0936324,105460.0,105450.0,1.26613196]
[1749439029268,0.90404,105460.0,105450.0,1.26613196]
[1749439029471,1.0935924,105460.0,105450.0,1.26613196]
[1749439031672,1.0935924,105460.0,105450.0,1.05893805]
[1749439032773,0.90404,105460.0,105450.0,1.05893805]
[1749439033074,1.0935924,105460.0,105450.0,1.05893805]
[1749439036273,0.7327924,105460.0,105450.0,1.05893805]
[1749439036477,1.0935924,105460.0,105450.0,1.05893805]
[1749439037768,0.7327924,105460.0,105450.0,1.05893805]
[1749439037969,1.0935924,105460.0,105450.0,1.05893805]
[1749439039472,1.0935924,105460.0,105450.0,0.94125397]
[1749439039670,1.0935924,105460.0,105450.0,1.05893805]
[1749439040575,1.0935924,105460.0,105450.0,0.94125397]
[1749439040777,1.0935924,105460.0,105450.0,1.05893805]
[1749439048180,0.90404,105460.0,105450.0,1.05893805]
[1749439048381,1.0935924,105460.0,105450.0,1.05893805]
[1749439048681,0.90404,105460.0,105450.0,1.05893805]
[1749439048882,1.0935924,105460.0,105450.0,1.35330598]
[1749439049074,0.90404,105460.0,105450.0,1.35330598]
[1749439049684,1.0935924,105460.0,105450.0,1.35330598]
[1749439050482,0.7327924,105460.0,105450.0,1.35330598]
[1749439050671,1.0935924,105460.0,105450.0,1.35330598]
[1749439052786,0.7327924,105460.0,105450.0,1.35330598]
[1749439053182,1.0935924,105460.0,105450.0,1.35330598]
[1749439055582,0.7327924,105460.0,105450.0,1.35330598]
[1749439055773,1.0935924,105460.0,105450.0,1.2356219]
[1749439055979,1.0935924,105460.0,105450.0,1.35330598]
[1749439056782,0.7327924,105460.0,105450.0,1.35330598]
[1749439057086,0.6296724,105460.0,105450.0,1.35330598]
[1749439057282,0.9904724,105460.0,105450.0,1.35330598]
[1749439058586,0.9904724,105460.0,105450.0,1.05893805]
[1749439059585,0.6296724,105460.0,105450.0,1.05893805]
[1749439059784,0.9904724,105460.0,105450.0,1.05893805]
[1749439060191,0.80092,105460.0,105450.0,1.05893805]
[1749439063790,0.9904724,105460.0,105450.0,1.05893805]
[1749439064088,0.43976,105460.0,105450.0,1.05893805]
[1749439065091,0.43976,105460.0,105450.0,1.41973805]
[1749439066790,0.002,105460.0,105450.0,1.41973805]
[1749439066986,0.002,105460.0,105450.0,1.71410598]
[1749439067700,0.002,105460.0,105450.0,1.5964219]
[1749439067896,0.1915524,105460.0,105450.0,1.5964219]
[1749439068099,0.1915524,105460.0,105450.0,1.2356219]
[1749439068290,0.1915524,105460.0,105450.0,1.35330598]